{"text_format":"3","workbook":"xlsx","n_sheets":1,"sheets":["ACT"],"not_rendered":{"defined_names":2},"read":"whole","date_system":"1900"}

{"sheet":"ACT","index":0,"n_rows":69,"n_cols":4,"rows_kept":69,"merged":[[0,0,0,2]]}
["INSTITUTO MUNICIPAL DE PLANEACIÓN DE IRAPUATO, GTO.\nEstado de Actividades\nDel 1 de Enero al 31 de Diciembre de 2025\n(Cifras en Pesos)"]
["Concepto",2025,2024]
["INGRESOS Y OTROS BENEFICIOS"]
["Ingresos de Gestión",{"$f":"SUM(B5:B11)","v":0},{"$f":"SUM(C5:C11)","v":{"v":0.37,"d":"0"}}]
["Impuestos",0,0,4110]
["Cuotas y Aportaciones de Seguridad Social",0,0,4120]
["Contribuciones de Mejoras",0,0,4130]
["Derechos",0,0,4140]
["Productos",0,{"v":0.37,"d":"0"},4150]
["Aprovechamientos",0,0,4160]
["Ingresos por Venta de Bienes y Prestación de Servicios",0,0,4170]
[]
["Participaciones, Aportaciones, Convenios, Incentivos Derivados de la Colaboración Fiscal, Fondos Distintos de Aportaciones, Transferencias, Asignaciones, Subsidios y Subvenciones, y Pensiones y Jubilaciones",{"$f":"SUM(B14:B15)","v":{"v":29060264.42,"d":"29,060,264"}},{"$f":"SUM(C14:C15)","v":{"v":17450895.01,"d":"17,450,895"}}]
["Participaciones, Aportaciones, Convenios, Incentivos Derivados de la Colaboración Fiscal y Fondos Distintos de Aportaciones",0,0,4210]
["Transferencias, Asignaciones, Subsidios y Subvenciones, y Pensiones y Jubilaciones",{"v":29060264.42,"d":"29,060,264"},{"v":17450895.01,"d":"17,450,895"},4220]
[]
["Otros Ingresos y Beneficios",{"$f":"SUM(B18:B22)","v":0},{"$f":"SUM(C18:C22)","v":0}]
["Ingresos Financieros",0,0,4310]
["Incremento por Variación de Inventarios",0,0,4320]
["Disminución del Exceso de Estimaciones por Pérdida o Deterioro u Obsolescencia",0,0,4330]
["Disminución del Exceso de Provisiones",0,0,4340]
["Otros Ingresos y Beneficios Varios",0,0,4390]
[]
["Total de Ingresos y Otros Beneficios",{"$f":"SUM(B4+B13+B17)","v":{"v":29060264.42,"d":"29,060,264"}},{"$f":"SUM(C4+C13+C17)","v":{"v":17450895.380000003,"d":"17,450,895"}}]
[]
["GASTOS Y OTRAS PÉRDIDAS"]
["Gastos de Funcionamiento",{"$f":"SUM(B28:B30)","v":{"v":23873678.13,"d":"23,873,678"}},{"$f":"SUM(C28:C30)","v":{"v":9608456.43,"d":"9,608,456"}}]
["Servicios Personales",{"v":8153935.77,"d":"8,153,936"},{"v":5929485.64,"d":"5,929,486"},5110]
["Materiales y Suministros",{"v":299492.32,"d":"299,492"},{"v":185824.61,"d":"185,825"},5120]
["Servicios Generales",{"v":15420250.04,"d":"15,420,250"},{"v":3493146.18,"d":"3,493,146"},5130]
[]
["Transferencias, Asignaciones, Subsidios y Otras Ayudas",{"$f":"SUM(B33:B41)","v":0},{"$f":"SUM(C33:C41)","v":0}]
["Transferencias Internas y Asignaciones al Sector Público",0,0,5210]
["Transferencias al Resto del Sector Público",0,0,5220]
["Subsidios y Subvenciones",0,0,5230]
["Ayudas Sociales",0,0,5240]
["Pensiones y Jubilaciones",0,0,5250]
["Transferencias a Fideicomisos, Mandatos y Contratos Análogos",0,0,5260]
["Transferencias a la Seguridad Social",0,0,5270]
["Donativos",0,0,5280]
["Transferencias al Exterior",0,0,5290]
[]
["Participaciones y Aportaciones",{"$f":"SUM(B44:B46)","v":0},{"$f":"SUM(C44:C46)","v":0}]
["Participaciones",0,0,5310]
["Aportaciones",0,0,5320]
["Convenios",0,0,5330]
[]
["Intereses, Comisiones y Otros Gastos de la Deuda Pública",{"$f":"SUM(B49:B53)","v":0},{"$f":"SUM(C49:C53)","v":0}]
["Intereses de la Deuda Pública",0,0,5410]
["Comisiones de la Deuda Pública",0,0,5420]
["Gastos de la Deuda Pública",0,0,5430]
["Costo por Coberturas",0,0,5440]
["Apoyos Financieros",0,0,5450]
[]
["Otros Gastos y Pérdidas Extraordinarias",{"$f":"SUM(B56:B59)","v":{"v":1444876.15,"d":"1,444,876"}},{"$f":"SUM(C56:C59)","v":{"v":263412.31,"d":"263,412"}}]
["Estimaciones, Depreciaciones, Deterioros, Obsolescencia y Amortizaciones",{"v":1444876.15,"d":"1,444,876"},{"v":263412.31,"d":"263,412"},5510]
["Provisiones",0,0,5520]
["Disminución de Inventarios",0,0,5530]
["Otros Gastos",0,0,5590]
[]
["Inversión Pública",{"$f":"SUM(B62)","v":0},{"$f":"SUM(C62)","v":0}]
["Inversión Pública no Capitalizable",0,0,5610]
[]
["Total de Gastos y Otras Pérdidas",{"$f":"B61+B55+B48+B43+B32+B27","v":{"v":25318554.279999997,"d":"25,318,554"}},{"$f":"C61+C55+C48+C43+C32+C27","v":{"v":9871868.74,"d":"9,871,869"}}]
[]
["Resultados del Ejercicio (Ahorro/Desahorro)",{"$f":"B24-B64","v":{"v":3741710.1400000043,"d":"3,741,710"}},{"$f":"C24-C64","v":{"v":7579026.640000002,"d":"7,579,027"}}]
[]
[]
["Bajo protesta de decir verdad declaramos que los Estados Financieros y sus notas, son razonablemente correctos y son responsabilidad del emisor."]